bitfinex-derivatives/quotes_SOLF0:USTF0_20250114
["timestamp","ask_amount","ask_price","bid_price","bid_amount"]
[1736893531633,10.53105129,187.84,187.82,1.95638335]
[1736893531830,10.53105129,187.84,187.83,1.95638335]
[1736893532231,10.53105129,187.84,187.8,2.6635]
[1736893532438,10.53105129,187.84,187.81,1.95650473]
[1736893532630,10.53105129,187.84,187.82,1.95650473]
[1736893532835,10.53105129,187.84,187.83,1.95647501]
[1736893533842,7.86805129,187.84,187.83,1.95647501]
[1736893534342,7.86805129,187.84,187.83,1.95686794]
[1736893536343,7.86805129,187.84,187.83,1.95750403]
[1736893540340,7.86805129,187.84,187.83,1.95682094]
[1736893540934,196.6276,187.9,187.83,1.95682094]
[1736893541141,7.86805129,187.88,187.84,1.95656531]
[1736893541443,7.86805129,187.88,187.82,7.86805129]
[1736893541644,7.86805129,187.88,187.84,2.6629]
[1736893543447,13.22805129,187.88,187.84,2.6629]
[1736893543949,8.0224,187.89,187.84,2.6629]
[1736893544248,7.86805129,187.88,187.84,2.6629]
[1736893544452,195.0,187.93,187.82,7.86805129]
[1736893544652,7.86805129,187.91,187.87,2.6625]
[1736893545246,2.662,187.91,187.84,7.86805129]
[1736893545452,7.86805129,187.9,187.85,1.95603249]
[1736893545646,7.86805129,187.9,187.84,7.86805129]
[1736893545846,7.86805129,187.9,187.85,4.6185734]
[1736893546046,7.86805129,187.9,187.85,2.6627]
[1736893546450,13.22805129,187.9,187.86,1.95545483]
[1736893546748,13.22805129,187.9,187.85,2.6627]
[1736893546950,13.22805129,187.9,187.86,1.95529487]
[1736893547155,13.22805129,187.9,187.85,2.6627]
[1736893547453,5.36,187.9,187.86,1.95497622]
[1736893547654,13.22805129,187.9,187.85,2.6627]
[1736893547858,13.22805129,187.9,187.86,1.95489327]
[1736893548059,5.36,187.9,187.85,2.6627]
[1736893548358,13.22805129,187.9,187.86,1.95489472]
[1736893548560,13.22805129,187.9,187.85,2.6627]
[1736893548864,13.22805129,187.9,187.86,1.95453819]
[1736893549055,13.22805129,187.9,187.85,2.6627]
[1736893549259,13.22805129,187.9,187.86,1.9545921]
[1736893549461,13.22805129,187.9,187.85,2.6627]
[1736893549658,13.22805129,187.9,187.86,1.95435099]
[1736893549861,13.22805129,187.9,187.85,2.6627]
[1736893550060,13.22805129,187.9,187.86,1.95432537]
[1736893550359,13.22805129,187.9,187.85,2.6627]
[1736893550559,13.22805129,187.9,187.86,1.95416757]
[1736893550859,7.86805129,187.9,187.85,2.6627]
[1736893551060,13.22805129,187.9,187.86,1.95400255]
[1736893551260,13.22805129,187.9,187.85,2.6627]
[1736893551462,13.22805129,187.9,187.86,1.9539115]
[1736893551657,13.22805129,187.9,187.85,2.6627]
[1736893551854,13.22805129,187.9,187.86,1.95391515]
[1736893552058,13.22805129,187.9,187.85,2.6627]
[1736893552253,5.36,187.9,187.86,1.95384261]
[1736893552463,10.53005129,187.91,187.85,2.6627]
[1736893552662,15.89005129,187.91,187.86,1.9534195]
[1736893552959,15.89005129,187.91,187.87,1.95339542]
[1736893553163,15.89005129,187.91,187.85,2.6627]
[1736893553464,15.89005129,187.91,187.86,1.95324233]
[1736893553662,15.89005129,187.91,187.85,2.6627]
[1736893553858,15.89005129,187.91,187.86,1.95337934]
[1736893554059,15.89005129,187.91,187.85,2.6627]
[1736893554356,15.89005129,187.91,187.86,1.95336505]
[1736893554559,15.89005129,187.91,187.85,2.6627]
[1736893554760,15.89005129,187.91,187.86,1.95403235]
[1736893554962,15.89005129,187.91,187.85,2.6627]
[1736893555162,15.89005129,187.91,187.86,1.95429948]
[1736893555464,15.89005129,187.91,187.85,2.6627]
[1736893555663,15.89005129,187.91,187.86,1.95473997]
[1736893555964,15.89005129,187.91,187.85,2.6627]
[1736893556162,15.89005129,187.91,187.86,1.95471601]
[1736893556357,15.89005129,187.91,187.85,2.6627]
[1736893556566,8.022,187.91,187.86,4.61753808]
[1736893556862,7.86805129,187.9,187.86,2.6627]
[1736893560868,10.53015129,187.9,187.86,2.6627]
[1736893564576,10.53015129,187.9,187.85,2.6628]
[1736893564775,7.86805129,187.88,187.86,1.95508101]
[1736893564975,7.86805129,187.88,187.82,7.86805129]
[1736893565176,7.86805129,187.88,187.83,4.61822539]
[1736893565369,7.86805129,187.88,187.84,1.95522539]
[1736893565566,7.86805129,187.88,187.85,1.95522539]
[1736893565773,7.86805129,187.88,187.86,1.95522539]
[1736893565974,7.86805129,187.88,187.8,7.86805129]
[1736893566179,7.86805129,187.86,187.81,1.95518729]
[1736893566474,7.86805129,187.86,187.82,1.95518729]
[1736893566679,7.86805129,187.86,187.83,1.95518729]
[1736893566976,7.86805129,187.86,187.79,10.53165129]
[1736893567177,7.86805129,187.86,187.8,1.95601351]
[1736893567375,7.86805129,187.86,187.79,10.53165129]
[1736893567376,2.6631,187.83,187.81,1.95601351]
[1736893567677,2.6631,187.83,187.82,1.95601351]
[1736893567877,2.6631,187.83,187.82,1.95589494]
[1736893568571,13.22805129,187.84,187.78,0.22047]
[1736893568572,2.6636,187.8,187.78,0.22047]
[1736893568776,2.6636,187.8,187.79,1.95635667]
[1736893578989,7.86805129,187.81,187.79,1.95635667]
[1736893579189,10.53155129,187.81,187.77,40.26560049]
[1736893579483,10.53155129,187.81,187.78,1.95458165]
[1736893579687,10.53155129,187.81,187.79,1.95458165]
[1736893579888,10.53155129,187.81,187.77,40.26560049]
[1736893580089,10.53155129,187.81,187.78,1.95448228]
[1736893580283,10.53155129,187.81,187.79,1.95448228]
[1736893580484,10.53155129,187.81,187.78,2.6638]
[1736893580682,10.53155129,187.81,187.79,1.95428526]
[1736893580882,10.53155129,187.81,187.78,2.6638]
[1736893581088,10.53155129,187.81,187.79,1.95435357]
[1736893581291,10.53155129,187.81,187.78,2.6638]
[1736893581490,10.53155129,187.81,187.79,1.95411253]
[1736893581691,10.53155129,187.81,187.77,37.60170049]
[1736893581887,10.53155129,187.81,187.78,1.95415497]
[1736893582088,10.53155129,187.81,187.79,1.95415497]
[1736893582286,10.53155129,187.81,187.77,40.26560049]
[1736893582485,10.53155129,187.81,187.78,1.95392372]
[1736893582695,10.53155129,187.81,187.79,1.95392372]
[1736893582896,10.53155129,187.81,187.77,40.26560049]
[1736893583097,10.53155129,187.81,187.78,1.9539298]
[1736893583291,10.53155129,187.81,187.79,1.9539298]
[1736893583492,10.53155129,187.81,187.77,40.26560049]
[1736893583790,10.53155129,187.81,187.78,1.95374837]
[1736893583991,10.53155129,187.81,187.77,40.26560049]
[1736893584195,10.53155129,187.81,187.78,1.95380979]
[1736893584398,10.53155129,187.81,187.77,40.26560049]
[1736893584592,10.53155129,187.81,187.78,1.95364568]
[1736893584895,10.53155129,187.81,187.77,40.26560049]
[1736893585096,10.53155129,187.81,187.78,1.95364323]
[1736893585292,10.53155129,187.81,187.77,40.26560049]
[1736893585493,10.53155129,187.81,187.78,1.9535493]
[1736893585693,10.53155129,187.81,187.77,40.26560049]
[1736893585893,10.53155129,187.81,187.78,1.9535203]
[1736893586097,10.53155129,187.81,187.77,40.26560049]
[1736893586400,10.53155129,187.81,187.78,1.95350717]
[1736893586594,10.53155129,187.81,187.77,40.26560049]
[1736893586794,10.53155129,187.81,187.78,1.95336762]
[1736893586994,10.53155129,187.81,187.77,40.26560049]
[1736893587189,10.53155129,187.81,187.78,1.95332932]
[1736893587394,10.53155129,187.81,187.77,40.26560049]
[1736893587598,10.53155129,187.81,187.78,1.9532874]
[1736893587798,10.53155129,187.81,187.77,40.26560049]
[1736893588100,10.53155129,187.81,187.78,1.95330074]
[1736893588302,10.53155129,187.81,187.77,40.26560049]
[1736893588601,10.53155129,187.81,187.78,1.9531819]
[1736893588801,10.53155129,187.81,187.77,37.60170049]
[1736893589000,10.53155129,187.81,187.78,4.6170334]
[1736893589196,10.53155129,187.81,187.78,2.6638]
[1736893595808,7.86805129,187.81,187.78,2.6638]
[1736893601510,7.86805129,187.81,187.79,1.95268473]
[1736893601710,7.86805129,187.81,187.78,2.6638]
[1736893602214,7.86805129,187.81,187.79,1.95306124]
[1736893602414,7.86805129,187.81,187.78,2.6638]
[1736893602614,7.86805129,187.81,187.79,1.95314109]
[1736893602909,7.86805129,187.81,187.78,2.6638]
[1736893603115,7.86805129,187.81,187.79,1.95314503]
[1736893603414,7.86805129,187.81,187.77,37.60170049]
[1736893603610,7.86805129,187.79,187.78,1.95352816]
[1736893603814,7.86805129,187.79,187.77,37.60170049]
[1736893604016,7.86805129,187.79,187.71,8.06669129]
[1736893604213,7.86805129,187.77,187.73,2.6644]
[1736893604411,13.22805129,187.77,187.74,1.95471445]
[1736893604615,13.22805129,187.77,187.75,1.95471445]
[1736893604817,13.22805129,187.77,187.73,2.6644]
[1736893605012,15.89205129,187.77,187.74,1.95494173]
[1736893605213,15.89205129,187.77,187.75,1.95494173]
[1736893605513,15.89205129,187.77,187.73,2.6644]
[1736893605713,15.89205129,187.77,187.74,1.95476906]
[1736893605912,15.89205129,187.77,187.75,1.95476906]
[1736893606117,15.89205129,187.77,187.73,2.6644]
[1736893606318,15.89205129,187.77,187.74,1.95461611]
[1736893606519,15.89205129,187.77,187.75,1.95461611]
[1736893606818,15.89205129,187.77,187.73,2.6644]
[1736893607015,15.89205129,187.77,187.74,1.95494893]
[1736893607319,15.89205129,187.77,187.75,1.95494893]
[1736893607518,15.89205129,187.77,187.73,2.6644]
[1736893607715,15.89205129,187.77,187.74,1.95523334]
[1736893607914,15.89205129,187.77,187.75,1.95523334]
[1736893608117,15.89205129,187.77,187.73,2.6644]
[1736893608320,15.89205129,187.77,187.74,1.95523357]
[1736893608517,15.89205129,187.77,187.73,2.6644]
[1736893608518,15.89205129,187.77,187.75,1.95523357]
[1736893608718,15.89205129,187.77,187.73,2.6644]
[1736893608719,15.89205129,187.77,187.76,1.95523357]
[1736893610222,15.89205129,187.77,187.76,1.95627045]
[1736893612125,15.89205129,187.77,187.74,2.6644]
[1736893612324,15.89205129,187.77,187.75,1.9570303]
[1736893612623,15.89205129,187.77,187.76,1.9570303]
[1736893612923,13.22805129,187.77,187.76,1.9570303]
[1736893616522,5.36,187.77,187.76,1.9570303]
[1736893616723,13.22805129,187.77,187.76,1.9570303]
[1736893618324,13.22805129,187.77,187.76,1.95677124]
[1736893622327,13.22805129,187.77,187.76,1.95694171]
[1736893623919,13.22805129,187.77,187.76,1.9569885]
[1736893626421,15.89205129,187.77,187.76,1.9569885]
[1736893626623,13.22805129,187.77,187.71,0.19864]
[1736893626832,7.86805129,187.75,187.74,2.6644]
[1736893627029,7.86805129,187.75,187.74,4.6217084]
[1736893629930,7.86805129,187.75,187.74,2.6644]
[1736893630129,7.86805129,187.75,187.74,4.62152467]
[1736893630534,7.86805129,187.75,187.74,4.62136362]
[1736893634433,15.89205129,187.77,187.74,4.62136362]
[1736893634734,15.89205129,187.77,187.75,1.95696362]
[1736893635034,15.89205129,187.77,187.74,2.6644]
[1736893635235,15.89205129,187.77,187.75,1.95740354]
[1736893635535,15.89205129,187.77,187.74,2.6644]
[1736893635833,15.89205129,187.77,187.75,1.95746471]
[1736893636032,15.89205129,187.77,187.74,2.6644]
[1736893636234,15.89205129,187.77,187.75,1.95738881]
[1736893636434,15.89205129,187.77,187.76,1.95738881]
[1736893637430,13.22805129,187.77,187.76,1.95738881]
[1736893638030,13.22805129,187.77,187.76,1.95803186]
[1736893638635,13.22805129,187.77,187.76,1.95809324]
[1736893640034,13.22805129,187.77,187.74,2.6643]
[1736893640238,13.22805129,187.77,187.75,1.95834772]
[1736893640440,13.22805129,187.77,187.76,1.95834772]
[1736893640641,5.36,187.77,187.76,1.95834772]
[1736893641142,5.36,187.77,187.76,4.62244772]
[1736893642337,7.86805129,187.8,187.76,1.95834772]
[1736893642543,7.86805129,187.8,187.78,2.6638]
[1736893642739,7.86805129,187.8,187.79,1.95834772]
[1736893643642,13.22805129,187.82,187.79,1.95834772]
[1736893643847,13.22805129,187.82,187.8,1.95834772]
[1736893644142,13.22805129,187.82,187.81,1.95834772]
[1736893645442,7.86805129,187.82,187.81,1.95834772]
[1736893646044,7.86805129,187.82,187.79,2.6636]
[1736893646339,7.86805129,187.82,187.8,1.95613636]
[1736893646543,7.86805129,187.82,187.81,1.95613636]
[1736893646743,7.86805129,187.82,187.81,1.95546464]
[1736893647445,5.36,187.83,187.81,4.61886464]
[1736893647743,7.86805129,187.85,187.82,1.95546464]
[1736893647941,13.22805129,187.85,187.83,1.95546464]
[1736893648139,13.22805129,187.85,187.82,2.6632]
[1736893648335,13.22805129,187.85,187.83,1.95480506]
[1736893648541,13.22805129,187.86,187.83,2.663]
[1736893648740,7.86805129,187.86,187.83,2.663]
[1736893650651,7.86805129,187.86,187.84,1.95215607]
[1736893650847,7.86805129,187.86,187.83,2.663]
[1736893651048,7.86805129,187.86,187.84,1.95223078]
[1736893651254,7.86805129,187.86,187.84,2.663]
[1736893651853,5.36,187.87,187.84,2.663]
[1736893652956,15.89055129,187.88,187.84,2.663]
[1736893658866,10.53055129,187.88,187.84,2.663]
[1736893659556,7.86805129,187.88,187.84,2.663]
[1736893660158,2.6623,187.89,187.83,7.86805129]
[1736893660361,13.22805129,187.9,187.86,2.6627]
[1736893661366,2.6621,187.91,187.86,2.6627]
[1736893661563,2.6621,187.91,187.85,10.53075129]
[1736893665069,2.6621,187.9,187.85,10.53075129]
[1736893668375,7.86805129,187.94,187.87,7.86805129]
[1736893668968,10.52975129,187.94,187.89,2.6622]
[1736893671675,7.86805129,187.94,187.89,2.6622]
[1736893671874,2.6617,187.93,187.89,2.6622]
[1736893672271,5.36,187.95,187.87,7.86805129]
[1736893672472,10.52965129,187.94,187.89,2.6622]
[1736893673273,2.6617,187.93,187.89,2.6622]
[1736893676377,2.6617,187.93,187.9,2.6621]
[1736893680784,2.6617,187.93,187.87,7.86805129]
[1736893681079,2.6617,187.93,187.91,2.6619]
[1736893684377,7.86805129,187.94,187.91,2.6619]
[1736893684577,10.52965129,187.94,187.91,2.6619]
[1736893685076,2.6616,187.94,187.89,2.6623]
[1736893685271,10.52965129,187.94,187.87,7.86805129]
[1736893685476,10.52965129,187.94,187.88,1.9439823]
[1736893685784,10.52965129,187.94,187.91,2.6619]
[1736893685980,7.86805129,187.92,187.86,7.86805129]
[1736893686177,7.86805129,187.92,187.87,1.94456994]
[1736893686380,7.86805129,187.92,187.88,1.94456994]
[1736893686584,7.86805129,187.92,187.86,7.86805129]
[1736893686781,7.86805129,187.92,187.87,1.94569126]
[1736893686982,7.86805129,187.92,187.88,1.94569126]
[1736893687184,2.662,187.91,187.89,2.6622]
[1736893687779,2.6621,187.9,187.87,2.6625]
[1736893688382,2.6621,187.9,187.88,2.6624]
[1736893688686,2.6624,187.89,187.85,44.45231124]
[1736893688885,2.6624,187.89,187.86,1.94768831]
[1736893689186,2.6624,187.89,187.87,1.94768831]
[1736893689381,2.6624,187.89,187.86,2.6626]
[1736893689588,7.86805129,187.9,187.86,2.6626]
[1736893689589,10.52995129,187.92,187.9,2.6621]
[1736893690788,2.662,187.91,187.89,2.6622]
[1736893693085,2.662,187.91,187.85,7.86805129]
[1736893693293,2.6621,187.9,187.86,1.95005917]
[1736893693489,2.6621,187.9,187.87,1.95005917]
[1736893693689,2.6621,187.9,187.88,1.95005917]
[1736893693892,2.6621,187.9,187.87,2.6625]
[1736893694094,2.6621,187.9,187.88,1.9507289]
[1736893694294,2.6621,187.9,187.85,7.86805129]
[1736893694588,2.6621,187.9,187.87,2.6624]
[1736893694892,2.6621,187.9,187.88,1.95124912]
[1736893695093,2.6621,187.9,187.87,2.6624]
[1736893695296,2.6621,187.9,187.88,1.95134408]
[1736893695593,2.6621,187.9,187.87,2.6624]
[1736893695793,2.6621,187.9,187.88,1.95179462]
[1736893695994,2.6621,187.9,187.87,2.6624]
[1736893696190,2.6621,187.9,187.88,4.61419024]
[1736893696395,2.6621,187.9,187.89,1.95179024]
[1736893697293,2.662,187.91,187.89,1.95179024]
[1736893697592,2.662,187.91,187.88,2.6624]
[1736893697792,2.662,187.91,187.89,1.95233578]
[1736893697992,2.662,187.91,187.88,2.6624]
[1736893698194,2.662,187.91,187.89,1.95226963]
[1736893698393,2.662,187.91,187.88,2.6624]
[1736893698596,2.662,187.91,187.89,1.95251785]
[1736893698797,2.662,187.91,187.88,2.6624]
[1736893698992,2.662,187.91,187.89,1.95222947]
[1736893699187,2.662,187.91,187.88,2.6624]
[1736893699393,2.662,187.91,187.89,1.95234483]
[1736893699593,2.662,187.91,187.88,2.6624]
[1736893699790,2.662,187.91,187.89,1.95245962]
[1736893699997,2.662,187.91,187.88,2.6624]
[1736893700199,2.662,187.91,187.89,1.95245867]
[1736893700394,2.662,187.91,187.88,2.6624]
[1736893700594,2.662,187.91,187.89,1.95273678]
[1736893700798,2.662,187.91,187.88,2.6624]
[1736893701098,7.86805129,187.91,187.89,1.95272985]
[1736893701289,7.86805129,187.91,187.88,2.6624]
[1736893701487,7.86805129,187.91,187.89,1.95308726]
[1736893701696,7.86805129,187.91,187.88,2.6624]
[1736893701897,7.86805129,187.91,187.89,1.95309735]
[1736893702197,7.86805129,187.91,187.88,2.6624]
[1736893702390,7.86805129,187.91,187.89,1.95342209]
[1736893702589,7.86805129,187.91,187.88,2.6624]
[1736893702798,7.86805129,187.91,187.89,1.95348966]
[1736893702998,7.86805129,187.91,187.88,2.6624]
[1736893703298,7.86805129,187.91,187.89,1.95348352]
[1736893703500,7.86805129,187.91,187.88,2.6624]
[1736893703699,7.86805129,187.91,187.89,1.95378133]
[1736893703899,7.86805129,187.91,187.9,1.95378133]
[1736893706392,7.86805129,187.91,187.9,1.95471598]
[1736893707297,2.6619,187.92,187.9,1.95471598]
[1736893707493,7.86805129,187.92,187.89,2.6623]
[1736893707691,7.86805129,187.92,187.9,1.95576852]
[1736893707890,7.86805129,187.92,187.89,2.6623]
[1736893708092,7.86805129,187.92,187.9,1.95586667]
[1736893708292,7.86805129,187.92,187.89,2.6623]
[1736893708491,7.86805129,187.92,187.9,1.95593082]
[1736893708796,7.86805129,187.92,187.89,2.6623]
[1736893708997,7.86805129,187.92,187.9,1.95611847]
[1736893709198,7.86805129,187.92,187.89,2.6623]
[1736893709396,7.86805129,187.92,187.9,1.95621992]
[1736893709599,7.86805129,187.92,187.89,2.6623]
[1736893709801,7.86805129,187.92,187.9,1.95625771]
[1736893709992,7.86805129,187.92,187.89,2.6623]
[1736893710194,7.86805129,187.92,187.9,1.95625825]
[1736893710398,7.86805129,187.92,187.89,2.6623]
[1736893710598,2.6618,187.93,187.9,1.95635883]
[1736893710797,2.6618,187.93,187.89,2.6623]
[1736893711098,7.86805129,187.92,187.9,1.95634647]
[1736893711298,7.86805129,187.92,187.89,2.6623]
[1736893711499,7.86805129,187.92,187.9,1.95641245]
[1736893711700,7.86805129,187.92,187.89,2.6623]
[1736893711901,7.86805129,187.92,187.9,1.95639915]
[1736893712099,7.86805129,187.92,187.89,2.6623]
[1736893712299,5.36,187.91,187.89,2.6623]
[1736893712502,5.36,187.91,187.9,1.95648322]
[1736893712803,5.36,187.91,187.9,4.61858322]
[1736893714405,5.36,187.91,187.9,4.61858937]
[1736893718409,7.86805129,187.93,187.9,1.95648937]
[1736893718605,13.22805129,187.93,187.91,4.61848937]
[1736893718806,13.22805129,187.93,187.91,2.662]
[1736893719006,13.22805129,187.93,187.92,1.95632021]
[1736893719514,13.22805129,187.93,187.91,2.662]
[1736893721014,13.22805129,187.93,187.92,1.9564285]
[1736893723920,7.86805129,187.95,187.92,4.6182285]
[1736893724126,7.86805129,187.95,187.93,1.9564285]
[1736893724418,7.86805129,187.95,187.92,2.6618]
[1736893724619,7.86805129,187.95,187.93,1.95631745]
[1736893724816,10.52945129,187.95,187.92,2.6618]
[1736893725017,10.52945129,187.95,187.93,1.95633078]
[1736893725218,10.52945129,187.95,187.92,2.6618]
[1736893725524,10.52945129,187.95,187.93,1.95623626]
[1736893725720,10.52945129,187.95,187.92,2.6618]
[1736893725920,10.52945129,187.95,187.93,1.95622115]
[1736893726116,15.86945129,187.95,187.92,2.6618]
[1736893726322,15.86945129,187.95,187.93,1.95613123]
[1736893726522,15.86945129,187.95,187.92,2.6618]
[1736893726723,15.86945129,187.95,187.93,1.95605581]
[1736893726922,15.86945129,187.95,187.92,2.6618]
[1736893727120,15.86945129,187.95,187.93,1.95619675]
[1736893727324,15.86945129,187.95,187.92,2.6618]
[1736893727524,15.86945129,187.95,187.93,1.95613781]
[1736893727722,5.34,187.95,187.92,2.6618]
[1736893727922,13.20805129,187.95,187.93,1.9562084]
[1736893728225,13.20805129,187.95,187.92,2.6618]
[1736893728422,13.20805129,187.95,187.93,1.95598551]
[1736893728620,13.20805129,187.95,187.92,2.6618]
[1736893728822,13.20805129,187.95,187.93,1.95578606]
[1736893729130,13.20805129,187.95,187.94,1.95578606]
[1736893729922,13.20805129,187.95,187.92,2.6618]
[1736893730217,13.20805129,187.95,187.93,1.95599361]
[1736893730423,13.20805129,187.95,187.92,2.6618]
[1736893730724,13.20805129,187.95,187.93,1.95596071]
[1736893730926,13.20805129,187.95,187.94,1.95596071]
[1736893731126,13.20805129,187.95,187.92,2.6618]
[1736893731328,13.20805129,187.95,187.93,1.9556405]
[1736893731527,13.20805129,187.95,187.94,1.95565931]
[1736893731730,13.20805129,187.95,187.92,2.6618]
[1736893732028,13.20805129,187.95,187.93,1.95534488]
[1736893732236,13.20805129,187.95,187.92,2.6618]
[1736893732528,13.20805129,187.95,187.93,1.95512953]
[1736893732728,13.20805129,187.95,187.92,2.6618]
[1736893732930,13.20805129,187.95,187.93,1.95510937]
[1736893733230,13.20805129,187.95,187.92,2.6618]
[1736893733432,13.20805129,187.95,187.93,1.95498452]
[1736893733631,13.20805129,187.95,187.94,1.95498452]
[1736893733932,13.20805129,187.95,187.92,2.6618]
[1736893734131,13.20805129,187.95,187.93,1.95490728]
[1736893734431,13.20805129,187.95,187.92,2.6618]
[1736893734626,13.20805129,187.95,187.93,1.95457753]
[1736893734832,13.20805129,187.95,187.92,2.6618]
[1736893739437,13.20805129,187.95,187.88,7.86805129]
[1736893739628,13.20805129,187.95,187.91,2.6619]
[1736893739930,7.86805129,187.95,187.91,2.6619]
[1736893740134,13.20805129,187.95,187.91,2.6619]
[1736893740637,15.86945129,187.95,187.91,2.6619]
[1736893749641,10.52945129,187.95,187.91,2.6619]
[1736893749843,15.86945129,187.95,187.91,2.6619]
[1736893750638,15.86945129,187.95,187.92,1.95414273]
[1736893750837,15.86945129,187.95,187.93,1.95392405]
[1736893751138,15.86945129,187.95,187.94,1.95392406]
[1736893752340,15.86945129,187.95,187.94,1.95419424]
[1736893752740,3.1779,188.0,187.94,1.95419424]
[1736893752944,7.86805129,187.96,187.95,1.95375024]
[1736893753145,7.86805129,187.96,187.93,2.6616]
[1736893753341,7.86805129,187.96,187.94,1.95389057]
[1736893753535,7.86805129,187.96,187.93,2.6616]
[1736893753739,7.86805129,187.96,187.94,1.95369126]
[1736893753939,7.86805129,187.96,187.93,2.6616]
[1736893754143,7.86805129,187.96,187.94,1.95368639]
[1736893754344,7.86805129,187.96,187.93,2.6616]
[1736893754544,7.86805129,187.96,187.94,1.95361516]
[1736893754843,7.86805129,187.96,187.93,2.6616]
[1736893755043,7.86805129,187.96,187.94,1.95379265]
[1736893755245,7.86805129,187.96,187.93,2.6616]
[1736893755448,13.20805129,187.96,187.94,1.95379505]
[1736893755638,13.20805129,187.96,187.93,2.6616]
[1736893755842,13.20805129,187.96,187.94,1.95362263]
[1736893756143,13.20805129,187.96,187.93,2.6616]
[1736893756344,13.20805129,187.96,187.94,1.95377558]
[1736893756547,13.20805129,187.96,187.93,2.6616]
[1736893756842,13.20805129,187.96,187.94,1.95370958]
[1736893757042,13.20805129,187.96,187.93,2.6616]
[1736893757238,13.20805129,187.96,187.94,1.95378904]
[1736893757443,13.20805129,187.96,187.93,2.6616]
[1736893757646,13.20805129,187.96,187.94,1.9538571]
[1736893757843,13.20805129,187.96,187.93,2.6616]
[1736893758044,13.20805129,187.96,187.94,1.95383974]
[1736893758246,13.20805129,187.96,187.93,2.6616]
[1736893758451,13.20805129,187.96,187.94,1.95398934]
[1736893758749,13.20805129,187.96,187.93,2.6616]
[1736893758949,13.20805129,187.96,187.94,1.95399004]
[1736893759148,13.20805129,187.96,187.93,2.6616]
[1736893759346,13.20805129,187.96,187.94,1.95400111]
[1736893759547,13.20805129,187.96,187.93,2.6616]
[1736893759746,13.20805129,187.96,187.94,1.95397276]
[1736893759943,13.20805129,187.96,187.93,2.6616]
[1736893760145,13.20805129,187.96,187.94,1.9539667]
[1736893760347,13.20805129,187.96,187.93,2.6616]
[1736893760547,13.20805129,187.96,187.94,1.95447733]
[1736893760750,13.20805129,187.96,187.95,1.95447733]
[1736893761451,13.20805129,187.96,187.93,2.6616]
[1736893761648,13.20805129,187.96,187.94,1.95464581]
[1736893761848,13.20805129,187.96,187.95,1.95464581]
[1736893762247,13.20805129,187.96,187.95,1.95477252]
[1736893765849,15.86935129,187.96,187.95,1.95477252]
[1736893768050,10.52935129,187.96,187.95,1.95477252]
[1736893768256,2.6611,187.98,187.95,1.95477252]
[1736893768459,2.6611,187.98,187.96,1.95477252]
[1736893768658,2.6611,187.98,187.97,1.95477252]
[1736893770253,2.6611,187.98,187.94,2.6615]
[1736893770461,2.6611,187.98,187.95,1.95380486]
[1736893770652,2.6611,187.98,187.96,1.95380486]
[1736893770964,2.6611,187.98,187.97,1.95380486]
[1736893772259,2.6611,187.98,187.97,1.95388873]
[1736893774861,2.6611,187.98,187.97,1.95380357]
[1736893776466,2.6611,187.98,187.97,1.9538449]
[1736893777663,2.6611,187.98,187.94,2.6615]
[1736893777864,2.6611,187.98,187.95,1.95400553]
[1736893778059,2.6611,187.98,187.96,1.95400553]
[1736893778365,2.6611,187.98,187.97,1.95407753]
[1736893780361,2.6611,187.98,187.97,1.95421034]
[1736893782461,2.6611,187.98,187.97,1.95423889]
[1736893783067,2.6611,187.98,187.97,1.95375356]
[1736893785661,10.52915129,187.98,187.97,1.95375356]
[1736893786466,10.52915129,187.98,187.97,1.95394078]
[1736893790466,10.52915129,187.98,187.97,1.95391123]
[1736893790966,10.52915129,187.98,187.94,2.6615]
[1736893791168,10.52915129,187.98,187.95,1.95393614]
[1736893791367,10.52915129,187.98,187.96,1.95393614]
[1736893791667,10.52915129,187.98,187.97,1.95393614]
[1736893792263,2.6611,187.98,187.97,1.95393614]
[1736893795870,2.6609,187.99,187.97,1.95393614]
[1736893796071,10.52895129,187.99,187.95,2.6614]
[1736893796273,10.52895129,187.99,187.96,1.95381612]
[1736893796467,10.52895129,187.99,187.97,1.95381612]
[1736893796669,10.52895129,187.99,187.95,2.6614]
[1736893796973,10.52895129,187.99,187.96,1.9537238]
[1736893797172,10.52895129,187.99,187.97,1.9537238]
[1736893797369,10.52895129,187.99,187.95,2.6614]
[1736893797569,10.52895129,187.99,187.96,1.95360584]
[1736893797769,10.52895129,187.99,187.97,1.95360584]
[1736893798067,10.52895129,187.99,187.95,2.6614]
[1736893798269,10.52895129,187.99,187.96,1.95363741]
[1736893798471,10.52895129,187.99,187.97,1.95363741]
[1736893798671,10.52895129,187.99,187.95,2.6614]
[1736893798873,10.52895129,187.99,187.96,1.95372683]